bitfinex/quotes_ETHUSD_20250424
["timestamp","ask_amount","ask_price","bid_price","bid_amount"]
[1745524202636,0.7815,1765.3,1765.0,5.66550386]
[1745524203050,6.44635609,1765.3,1764.9,6.42856281]
[1745524203227,0.7815,1765.3,1765.0,5.66568381]
[1745524203548,0.7815,1765.3,1765.0,5.66572237]
[1745524204113,0.29513474,1765.4,1765.3,5.66475953]
[1745524212024,0.7875,1766.0,1765.7,5.66347624]
[1745524212240,0.29513083,1765.9,1765.7,5.6632767]
[1745524212954,0.29513083,1765.9,1765.6,10.48060388]
[1745524213158,5.95815542,1765.9,1765.6,4.817]
[1745524213356,7.19898836,1765.9,1765.6,4.817]
[1745524213651,0.772,1765.8,1765.6,4.817]
[1745524213852,6.43533144,1765.8,1765.6,4.817]
[1745524214857,0.772,1765.8,1765.6,4.817]
[1745524215152,6.43538049,1765.8,1765.6,4.817]
[1745524216158,0.772,1765.8,1765.6,4.817]
[1745524216653,6.43524909,1765.8,1765.6,4.817]
[1745524216860,7.259001,1765.8,1765.6,4.817]
[1745524217228,12.92245718,1765.8,1765.6,4.817]
[1745524217431,7.259001,1765.8,1765.6,4.817]
[1745524217747,12.92239778,1765.8,1765.6,4.817]
[1745524217944,7.259001,1765.8,1765.6,4.817]
[1745524218147,5.66347624,1765.7,1765.6,4.817]
[1745524219227,5.66348116,1765.7,1765.4,5.66439453]
[1745524220765,5.66348116,1765.7,1765.3,16.14516854]
[1745524221662,5.66348116,1765.7,1765.4,5.66441111]
[1745524222866,5.66348116,1765.7,1765.3,16.14510256]
[1745524223058,5.66348116,1765.7,1765.4,5.66443636]
[1745524223252,6.43524909,1765.8,1765.5,5.66408333]
[1745524223253,0.772,1765.8,1765.5,5.66408333]
[1745524223437,6.43531972,1765.8,1765.4,6.46549435]
[1745524223637,5.6635526,1765.7,1765.4,6.46549435]
[1745524223836,5.6635526,1765.7,1765.4,5.66439435]
[1745524224368,5.66350762,1765.7,1765.3,12.17597097]
[1745524224575,5.66350762,1765.7,1765.3,17.840546]
[1745524224781,6.43532978,1765.8,1765.4,5.66433748]
[1745524224985,7.46529541,1765.9,1765.8,5.66315551]
[1745524224986,0.29513083,1765.9,1765.8,5.66315551]
[1745524225134,0.4050537,1766.1,1766.0,5.66251415]
[1745524228192,0.4050537,1766.1,1766.0,6.43221415]
[1745524228337,0.4050537,1766.1,1766.0,7.44832361]
[1745524229271,0.4050537,1766.1,1766.0,7.39170516]
[1745524231167,0.4050537,1766.1,1766.0,7.4483215]
[1745524231777,0.4050537,1766.1,1766.0,7.67853107]
[1745524232167,0.819,1766.7,1766.2,0.8202]
[1745524232341,6.47932818,1766.7,1766.4,5.66117814]
[1745524232541,0.29510659,1766.5,1766.3,10.68492777]
[1745524232737,0.29510659,1766.5,1766.3,16.13660733]
[1745524233183,0.29510659,1766.5,1766.4,5.66123188]
[1745524233376,0.29510659,1766.5,1766.4,0.8202]
[1745524233746,0.29510659,1766.5,1766.3,10.47553424]
[1745524234595,0.29510659,1766.5,1766.3,4.814]
[1745524234786,7.36906296,1766.5,1766.3,4.814]
[1745524235282,5.66123188,1766.4,1766.3,4.814]
[1745524235483,6.46583188,1766.4,1766.3,4.814]
[1745524238486,5.66267008,1766.0,1765.9,4.813]
[1745524238662,6.87836757,1766.0,1765.9,4.813]
[1745524240001,7.71036757,1766.0,1765.9,4.813]
[1745524241398,8.14401258,1766.0,1765.9,4.813]
[1745524241991,5.66315551,1765.8,1765.7,16.994]
[1745524243085,5.66283547,1765.9,1765.7,16.994]
[1745524243409,5.66315551,1765.8,1765.7,16.994]
[1745524243996,5.95869453,1765.8,1765.7,16.994]
[1745524245208,5.66347624,1765.7,1765.6,4.813]
[1745524245373,5.95890533,1765.8,1765.6,4.813]
[1745524250517,5.66347624,1765.7,1765.6,4.813]
[1745524250991,7.5833144,1765.7,1765.6,4.813]
[1745524251333,5.66396009,1765.6,1765.3,4.814]
[1745524251529,6.74093391,1765.4,1765.3,4.814]
[1745524251820,5.66443865,1765.4,1765.3,4.814]
[1745524252630,6.42203865,1765.4,1765.3,4.814]
[1745524252823,6.7173481,1765.4,1765.3,4.814]
[1745524253319,7.955509,1765.4,1765.3,4.814]
[1745524253491,9.03200426,1765.4,1765.3,4.814]
[1745524253826,5.665049,1765.3,1764.9,5.66585826]
[1745524253986,5.66584354,1765.0,1764.7,4.814]
[1745524254189,5.66543673,1765.1,1764.7,10.48057123]
[1745524254397,5.66543673,1765.1,1764.7,12.17204369]
[1745524254626,5.66524284,1765.2,1764.7,12.17204544]
[1745524254806,5.66524284,1765.2,1764.8,11.3325436]
[1745524255120,5.66524284,1765.2,1764.8,5.66613496]
[1745524256085,11.33057693,1765.2,1764.8,5.66613496]
[1745524256305,5.66524284,1765.2,1764.8,5.66613496]
[1745524256685,11.33059087,1765.2,1764.8,5.66613496]
[1745524257114,5.66546426,1765.1,1764.8,5.66613496]
[1745524257289,5.66546426,1765.1,1764.9,0.15956629]
[1745524257691,5.66546426,1765.1,1764.8,5.66613496]
[1745524257902,5.66546426,1765.1,1765.0,0.15950794]
[1745524258104,5.66546426,1765.1,1764.9,0.15956629]
[1745524258304,5.66546426,1765.1,1765.0,0.15950794]
[1745524258517,5.6651892,1765.2,1765.0,0.15950794]
[1745524258716,11.33053833,1765.2,1764.8,5.66613496]
[1745524258918,6.82630971,1765.2,1765.1,0.15977983]
[1745524259223,5.66609706,1764.9,1764.7,4.814]
[1745524259426,5.66636446,1764.8,1764.7,4.814]
[1745524259927,7.91795687,1764.8,1764.3,0.7827]
[1745524260116,6.74420021,1764.4,1764.2,4.815]
[1745524261327,5.66797029,1764.3,1764.2,4.815]
[1745524261896,6.74427976,1764.4,1764.2,4.815]
[1745524264045,1.07649526,1764.4,1764.2,4.815]
[1745524264632,5.66751,1764.5,1764.2,4.815]
[1745524264800,5.66776035,1764.4,1764.2,4.815]
[1745524265353,5.66788652,1764.4,1764.2,4.815]
[1745524265501,6.09833422,1764.4,1764.2,4.815]
[1745524268352,0.4304477,1764.4,1764.2,4.815]
[1745524268635,11.3350958,1764.5,1764.2,4.815]
[1745524269204,6.74415394,1764.4,1764.2,4.815]
[1745524270054,5.66797029,1764.3,1764.2,4.815]
[1745524270903,7.17795954,1764.4,1764.2,4.815]
[1745524271103,12.84590711,1764.4,1764.2,4.815]
[1745524271401,5.66797029,1764.3,1764.2,4.815]
[1745524272198,5.66797029,1764.3,1764.2,4.95440483]
[1745524273237,5.96326569,1764.3,1764.2,4.95440483]
[1745524274443,7.57320244,1764.3,1764.2,4.95440483]
[1745524274862,7.57320244,1764.3,1764.2,0.13940483]
[1745524275023,5.66859929,1764.2,1763.9,4.817]
[1745524275222,6.74509455,1764.2,1764.0,0.1326451]
[1745524275418,5.66861289,1764.1,1764.0,0.1326451]
[1745524275759,6.74509455,1764.2,1764.0,0.1326451]
[1745524276251,1.07649526,1764.2,1764.0,0.1326451]
[1745524276549,7.57338121,1764.3,1764.0,0.1326451]
[1745524277148,13.24163005,1764.3,1764.0,0.1326451]
[1745524278049,7.57338121,1764.3,1764.0,0.1326451]
[1745524278427,13.24162776,1764.3,1764.0,0.1326451]
[1745524278629,7.57338121,1764.3,1764.0,0.1326451]
[1745524279416,13.24160796,1764.3,1764.0,0.1326451]
[1745524279955,7.57338121,1764.3,1764.0,0.1326451]
[1745524280157,6.7447977,1764.2,1764.0,0.1326451]
[1745524281537,5.66861289,1764.1,1764.0,0.1326451]
[1745524281746,8.1766097,1764.2,1764.0,0.1326451]
[1745524282563,13.84519948,1764.2,1764.0,0.1326451]
[1745524282866,5.66861289,1764.1,1764.0,0.1326451]
[1745524289653,8.1766097,1764.2,1763.6,10.48702601]
[1745524289654,5.6693196,1763.9,1763.6,10.48702601]
[1745524289853,5.6693196,1763.9,1763.7,0.13617259]
[1745524290064,5.6693196,1763.9,1763.6,10.48702601]
[1745524290268,11.33814299,1764.0,1763.7,0.13617259]
[1745524290462,5.66897673,1764.0,1763.6,16.15701757]
[1745524290669,11.63350898,1764.1,1763.7,5.80606313]
[1745524290962,5.96466172,1764.1,1763.7,11.47573702]
[1745524291165,5.96466172,1764.1,1763.7,5.80585198]
[1745524291550,5.96453183,1764.1,1763.8,5.6694564]
[1745524291770,11.63337614,1764.1,1763.7,5.80584885]
[1745524292094,5.96453183,1764.1,1763.8,0.13611966]
[1745524292291,5.96453183,1764.1,1763.8,5.80559844]
[1745524292987,5.66895432,1764.0,1763.8,0.13611966]
[1745524293155,5.96453183,1764.1,1763.8,0.13611966]
[1745524293363,5.96437808,1764.0,1763.8,0.13611966]
[1745524293704,7.04087334,1764.0,1763.7,5.66984962]
[1745524293910,7.04087334,1764.0,1763.9,0.13606123]
[1745524294208,7.04087334,1764.0,1763.8,0.13611966]
[1745524294385,7.04087334,1764.0,1763.9,0.13606123]
[1745524294559,1.37191936,1764.0,1763.9,0.13606123]
[1745524294766,1.37191936,1764.0,1763.7,5.66966963]
[1745524294965,1.37191936,1764.0,1763.9,0.13606123]
[1745524295504,1.37191936,1764.0,1763.7,7.2853394]
[1745524295706,1.37191936,1764.0,1763.9,0.13606123]
[1745524295890,1.37191936,1764.0,1763.8,0.13611966]
[1745524296211,7.04091557,1764.0,1763.8,0.13611966]
[1745524296904,12.71010547,1764.0,1763.8,0.13611966]
[1745524297070,7.04091557,1764.0,1763.8,0.13611966]
[1745524297773,5.66925562,1763.9,1763.8,0.13611966]
[1745524297975,7.04091557,1764.0,1763.8,0.13611966]
[1745524298169,7.04091557,1764.0,1763.7,5.66988301]
[1745524298368,7.04091557,1764.0,1763.9,0.13606123]
[1745524298568,7.04091557,1764.0,1763.8,0.13611966]
[1745524298777,7.04091557,1764.0,1763.9,0.13606123]
[1745524298979,8.34146166,1764.0,1763.9,0.13606123]
[1745524299299,5.6694171,1763.9,1763.6,4.817]
[1745524299603,11.33890427,1763.9,1763.6,4.817]
[1745524299767,5.66982742,1763.8,1763.6,4.817]
[1745524299963,5.6698985,1763.7,1763.6,4.817]
[1745524300182,5.67083818,1763.5,1763.3,4.817]
[1745524301106,6.74685741,1763.6,1763.3,4.817]
[1745524301793,12.41731972,1763.6,1763.3,4.817]
[1745524302303,12.41731972,1763.6,1763.4,0.13667706]
[1745524302903,6.74685741,1763.6,1763.4,0.13667706]
[1745524303513,6.74685741,1763.6,1763.2,10.48934759]
[1745524303803,6.74685741,1763.6,1763.5,0.13661864]
[1745524304013,6.74685741,1763.6,1763.2,10.48930173]
[1745524304215,1.07649526,1763.6,1763.5,0.13661864]
[1745524304372,1.07649526,1763.6,1763.2,10.48927636]
[1745524304565,1.07649526,1763.6,1763.5,0.13661864]
[1745524304764,1.07649526,1763.6,1763.2,13.239204]
[1745524304968,6.74671526,1763.6,1763.5,0.13661864]
[1745524305197,6.74671526,1763.6,1763.2,13.239204]
[1745524305198,7.04264374,1763.6,1763.2,13.239204]
[1745524305371,7.04264374,1763.6,1763.5,0.13661864]
[1745524305570,7.04264374,1763.6,1763.2,13.239204]
[1745524305780,7.04264374,1763.6,1763.5,0.13661864]
[1745524305985,7.04264374,1763.6,1763.3,5.67104443]
[1745524306188,7.04264374,1763.6,1763.5,5.80716017]
[1745524306189,0.29592848,1763.6,1763.5,5.80716017]
[1745524306389,0.29592848,1763.6,1763.5,5.67054153]
[1745524306592,0.29592848,1763.6,1763.5,5.86386085]
[1745524306863,0.41835073,1763.7,1763.6,5.67022]
[1745524307098,0.2954241,1764.0,1763.6,5.67022]
[1745524307099,0.29587919,1763.9,1763.7,5.66968882]
[1745524307296,0.71159633,1763.9,1763.8,0.13759792]
[1745524308571,0.71159633,1763.9,1763.8,5.80717496]
[1745524308771,0.71159633,1763.9,1763.8,0.13759792]
[1745524309183,0.71159633,1763.9,1763.8,5.80717496]
[1745524310222,0.71159633,1763.9,1763.8,0.13759792]
[1745524312318,1.78809159,1763.9,1763.8,0.13759792]
[1745524312811,1.78809159,1763.9,1763.7,5.66988615]
[1745524313119,0.41571714,1763.9,1763.8,0.13837873]
[1745524313348,5.96458611,1764.0,1763.8,0.13837873]
[1745524314116,0.2954241,1764.0,1763.8,0.13837873]
[1745524316018,5.66925562,1763.9,1763.7,4.817]
[1745524316321,5.66925562,1763.9,1763.8,0.13837873]
[1745524320109,7.52005088,1763.9,1763.8,0.13837873]
[1745524320612,5.67011806,1763.7,1763.4,4.816]
[1745524320795,6.74661332,1763.7,1763.4,4.816]
[1745524321195,0.29560523,1763.6,1763.4,4.816]
[1745524323725,0.29560523,1763.6,1763.4,10.48682209]
[1745524324608,0.29560523,1763.6,1763.4,10.48681859]
[1745524325929,0.29560523,1763.6,1763.4,16.15747308]
[1745524326135,0.29560523,1763.6,1763.4,17.43589828]
[1745524326298,0.29560523,1763.6,1763.4,17.43586436]
[1745524326497,0.29560523,1763.6,1763.4,11.76520987]
[1745524328627,0.29560523,1763.6,1763.4,11.76520979]
[1745524330239,0.29560523,1763.6,1763.5,1.17652098]
[1745524330444,0.29560523,1763.6,1763.5,12.48366666]
[1745524330644,0.29560523,1763.6,1763.5,12.42696251]
[1745524331214,0.29588923,1764.1,1764.0,5.66893424]
[1745524331539,0.29588923,1764.1,1764.0,11.35361946]
[1745524331836,0.29535707,1764.5,1764.3,5.66774551]
[1745524332041,0.72932007,1764.5,1764.4,10.48364905]
[1745524332204,0.29535707,1764.5,1764.4,4.816]
[1745524332405,0.29535707,1764.5,1764.4,4.9521868]
[1745524335938,0.29535707,1764.5,1764.4,10.61983585]
[1745524336107,0.29535707,1764.5,1764.4,12.33059365]
[1745524336741,0.29535707,1764.5,1764.4,6.6629446]
[1745524336906,0.29535707,1764.5,1764.4,10.61983585]
[1745524338031,0.29535707,1764.5,1764.4,4.9521868]
[1745524338236,0.29535707,1764.5,1764.4,10.61983585]
[1745524340027,0.70996751,1764.5,1764.4,10.61983585]
[1745524343129,0.70996751,1764.5,1764.4,4.9521868]
[1745524344971,1.52246751,1764.5,1764.4,4.9521868]
[1745524345119,8.0163966,1764.5,1764.4,4.9521868]
[1745524345517,8.0163966,1764.5,1764.4,4.816]
[1745524345717,8.0163966,1764.5,1764.4,4.94575715]
[1745524345920,0.70996751,1764.5,1764.4,4.94575715]
[1745524346925,0.70996751,1764.5,1764.4,10.6134062]
[1745524347759,0.70996751,1764.5,1764.4,4.94575715]
[1745524348760,0.70996751,1764.5,1764.4,10.6134062]
[1745524349560,0.70996751,1764.5,1764.4,4.94575715]
[1745524349862,1.78646277,1764.5,1764.4,4.94575715]
[1745524352367,0.70996751,1764.5,1764.4,4.94575715]
[1745524354159,0.70996751,1764.5,1764.4,10.6134062]
[1745524354939,0.70996751,1764.5,1764.4,11.29026921]
[1745524356161,0.70996751,1764.5,1764.4,12.08876921]
[1745524359783,0.29535707,1764.5,1764.4,12.08876921]
[1745524361681,0.29535707,1764.5,1764.4,12.06908759]
[1745524361978,0.42530526,1764.6,1764.5,5.66732785]
[1745524362276,0.29512412,1764.7,1764.5,11.46397]
[1745524362603,0.29512412,1764.7,1764.6,5.66700668]
[1745524362944,0.29512412,1764.7,1764.6,5.79626264]
[1745524363886,0.29512412,1764.7,1764.6,10.60826264]
[1745524364394,0.29512412,1764.7,1764.6,4.94125596]
[1745524365480,0.72297917,1764.7,1764.6,4.94125596]
[1745524367483,0.72297917,1764.7,1764.6,10.60826264]
[1745524367977,0.72297917,1764.7,1764.6,4.94125596]
[1745524368355,0.72297917,1764.7,1764.6,10.60826264]
[1745524368987,0.72297917,1764.7,1764.6,4.94125596]
[1745524369155,0.72297917,1764.7,1764.6,10.60826264]
[1745524369493,1.87649526,1765.1,1764.8,5.66636446]
[1745524369659,0.29502941,1765.0,1764.9,0.1279275]
[1745524369865,0.29502941,1765.0,1764.9,5.6660434]
[1745524370178,0.29502941,1765.0,1764.9,6.5843709]
[1745524370384,7.54145498,1765.3,1765.0,5.66570815]
[1745524370557,7.54145498,1765.3,1765.1,4.812]
[1745524370766,2.17157344,1765.3,1765.2,0.12775257]
[1745524370964,6.17157344,1765.3,1765.2,0.12775257]
[1745524371181,2.17157344,1765.3,1765.1,4.812]
[1745524371484,2.17157344,1765.3,1765.2,0.12775257]
[1745524371783,2.17157344,1765.3,1765.1,4.812]
[1745524372088,2.17157344,1765.3,1765.2,0.12566587]
[1745524372252,2.17157344,1765.3,1765.1,4.812]
[1745524372585,2.59881417,1765.3,1765.2,0.12566587]
[1745524372967,2.59881417,1765.3,1765.1,4.812]
[1745524373156,2.59881417,1765.3,1765.2,0.12566587]
[1745524373357,1.79881417,1765.3,1765.1,4.812]
[1745524373691,0.72231891,1765.3,1765.2,0.12566587]
[1745524373985,0.72231891,1765.3,1765.2,5.66508044]
[1745524374178,0.72231891,1765.3,1765.2,0.87596587]
[1745524374374,0.72231891,1765.3,1765.2,6.54104631]
[1745524374885,0.72231891,1765.3,1765.2,0.87596587]
[1745524375061,0.72231891,1765.3,1765.2,0.12566587]
[1745524375387,0.72231891,1765.3,1765.2,5.66508044]
[1745524375591,0.72231891,1765.3,1765.2,5.79074631]
[1745524378167,0.72231891,1765.3,1765.2,0.12566587]
[1745524378360,0.72231891,1765.3,1765.2,5.66508044]
[1745524378570,0.72231891,1765.3,1765.2,5.79074631]
[1745524381799,0.72231891,1765.3,1765.2,0.12566587]
[1745524382298,0.72231891,1765.3,1765.2,0.1211092]
[1745524382604,0.72231891,1765.3,1765.1,16.14238467]
[1745524382902,0.72231891,1765.3,1765.2,5.78618964]
[1745524384602,0.72231891,1765.3,1765.2,7.41252698]
[1745524385135,0.29507818,1765.3,1765.2,8.18262698]
[1745524385345,0.2956295,1765.7,1765.6,5.663797]
[1745524385633,0.72876212,1765.7,1765.6,10.59080246]
[1745524385794,6.73362007,1765.9,1765.6,10.59080246]
[1745524385994,6.73362007,1765.9,1765.6,4.92700546]
[1745524386436,6.73362007,1765.9,1765.6,10.59066264]
[1745524386937,6.73362007,1765.9,1765.6,4.92700546]
[1745524387133,5.6633055,1765.8,1765.6,4.92700546]
[1745524387341,1.0707405,1765.9,1765.6,10.59079238]
[1745524387492,6.73371742,1765.9,1765.6,4.92700546]
[1745524387694,12.39683216,1765.9,1765.6,4.92700546]
[1745524387997,5.66321163,1765.8,1765.6,4.92700546]
[1745524389037,6.09741253,1765.8,1765.6,4.92700546]
[1745524389545,0.4342009,1765.8,1765.6,4.92700546]
[1745524389832,6.73370363,1765.9,1765.6,4.92700546]
[1745524390042,8.11054723,1765.9,1765.6,4.92700546]
[1745524390424,13.77364743,1765.9,1765.6,4.92700546]
[1745524390739,8.11054723,1765.9,1765.6,4.92700546]
[1745524391598,5.66325882,1765.8,1765.6,4.92700546]
[1745524392447,8.11054723,1765.9,1765.6,4.92700546]
[1745524392615,8.52882078,1765.9,1765.6,4.92700546]
[1745524394817,1.48901405,1765.9,1765.6,10.59078798]
[1745524395348,0.71351405,1765.9,1765.6,10.59078798]
[1745524395849,0.71351405,1765.9,1765.6,11.34498798]
[1745524396620,6.37637811,1765.9,1765.6,5.68120546]
[1745524397447,5.66318777,1765.8,1765.6,5.68120546]
[1745524397617,6.37637811,1765.9,1765.6,5.68120546]
[1745524397819,7.71748898,1765.9,1765.6,5.68120546]
[1745524398457,6.37637811,1765.9,1765.6,11.34492539]
[1745524398753,6.34358722,1765.9,1765.6,11.34492539]
[1745524399422,6.34358722,1765.9,1765.6,5.68120546]
[1745524400735,5.66347624,1765.7,1765.6,4.92700546]
[1745524402160,12.69882231,1765.8,1765.6,4.92700546]
[1745524402551,7.03543504,1765.8,1765.6,4.92700546]
[1745524402852,0.29557021,1765.8,1765.6,11.35457527]
[1745524403058,0.29557021,1765.8,1765.6,12.4900328]
[1745524403365,0.29557021,1765.8,1765.7,5.66347624]
[1745524403526,0.29557021,1765.8,1765.7,0.11493511]
[1745524405646,0.29557021,1765.8,1765.7,6.55491135]
[1745524405849,0.41827355,1765.9,1765.8,5.66315551]
[1745524406051,0.2951997,1766.1,1765.9,5.66265779]
[1745524406253,0.2951997,1766.1,1766.0,4.808]
[1745524406461,0.2951997,1766.1,1766.0,4.92308948]
[1745524408263,0.71186164,1766.1,1766.0,4.92308948]
[1745524408762,8.26345043,1766.1,1766.0,4.92308948]
[1745524410065,2.6012569,1766.1,1766.0,4.92308948]
[1745524411146,0.71186164,1766.1,1766.0,4.92308948]
[1745524411649,5.66007296,1766.8,1766.0,23.48289369]
[1745524411843,11.32019915,1766.8,1766.2,6.45938522]
[1745524412158,5.65997929,1766.8,1766.4,5.66122638]
[1745524412461,5.65997929,1766.8,1766.5,4.91970164]
[1745524412668,6.9284333,1766.8,1766.5,4.91970164]
[1745524413466,6.736924,1766.7,1766.5,4.91970164]
[1745524414237,5.66059096,1766.6,1766.5,4.91970164]
[1745524415754,6.46579096,1766.6,1766.5,4.91970164]
[1745524417255,6.76093568,1766.6,1766.5,0.11370164]
[1745524417472,5.6609114,1766.5,1766.4,4.805]
[1745524417683,6.73740666,1766.5,1766.4,4.805]
[1745524421275,1.07649526,1766.5,1766.4,4.805]
[1745524421772,6.73740666,1766.5,1766.4,4.805]
[1745524424648,5.6609114,1766.5,1766.4,4.805]
[1745524430283,0.29514472,1766.6,1766.4,4.805]
[1745524430453,5.95582429,1766.6,1766.4,4.805]
[1745524431078,5.6609114,1766.5,1766.4,4.805]
[1745524432789,7.03231955,1766.6,1766.4,4.805]
[1745524432994,5.6609114,1766.5,1766.4,4.805]
[1745524436779,5.6609114,1766.5,1766.4,4.805]
[1745524437099,1.37163998,1766.6,1766.4,4.805]
[1745524437287,0.42172664,1766.7,1766.4,11.73237222]
[1745524437487,7.03212403,1766.8,1766.4,11.73222926]
[1745524437696,6.7366529,1766.8,1766.4,11.73222926]
[1745524438701,6.7366529,1766.8,1766.4,11.73242855]
[1745524438998,5.6609114,1766.5,1766.4,4.805]
[1745524439302,5.66127743,1766.4,1766.1,4.804]
[1745524439669,5.66038329,1766.7,1766.3,5.66128483]
[1745524439904,6.07797295,1766.8,1766.4,7.05239444]
[1745524440202,5.66028729,1766.7,1766.5,4.804]
[1745524441698,6.07784585,1766.8,1766.5,4.804]
[1745524442092,0.4178578,1766.8,1766.6,0.7868]
[1745524442272,5.65995107,1766.8,1766.6,0.7868]
[1745524444186,0.295088,1766.9,1766.7,6.44700533]
[1745524444388,0.295088,1766.9,1766.7,0.7868]
[1745524444614,5.95473017,1766.9,1766.7,0.7868]
[1745524444991,7.03122543,1766.9,1766.7,0.7868]
[1745524445396,7.45544855,1766.9,1766.7,0.7868]
[1745524446090,0.71931112,1766.9,1766.7,6.44696112]
[1745524446285,0.71931112,1766.9,1766.8,0.64469611]
[1745524446826,0.295088,1766.9,1766.8,7.1165463]
[1745524447287,0.295088,1766.9,1766.8,1.45659611]
[1745524451111,0.295088,1766.9,1766.8,0.8119]
[1745524458005,5.95471786,1766.9,1766.6,0.7883]
[1745524458339,0.295088,1766.9,1766.8,5.65995019]
[1745524458519,0.58364464,1767.3,1766.9,5.65947047]
[1745524458702,1.37190939,1767.3,1767.0,10.46326819]
[1745524458900,1.66695119,1767.3,1767.0,10.46326819]
[1745524459107,1.66695119,1767.3,1767.0,4.804]
[1745524459333,7.32551802,1767.3,1767.0,4.804]
[1745524459635,5.65867741,1767.2,1767.0,4.804]
[1745524460147,7.32551802,1767.3,1767.0,6.14761471]
[1745524460652,7.03010389,1767.3,1767.0,6.14761471]
[1745524460838,0.72588554,1767.3,1767.1,5.65889554]
[1745524461010,0.72588554,1767.3,1767.0,11.80667812]
[1745524461213,0.72588554,1767.3,1767.1,1.18066781]
[1745524463358,7.46083646,1767.3,1767.0,6.14761471]
[1745524463568,5.65867774,1767.2,1767.0,6.14761471]
[1745524464460,7.02999272,1767.3,1767.0,6.14761471]
[1745524465460,12.68863141,1767.3,1767.0,6.14761471]
[1745524465624,7.02999272,1767.3,1767.0,5.6024]
[1745524466267,0.00207409,1767.5,1767.2,5.65866908]
[1745524466430,0.00207409,1767.5,1767.1,0.7778]
[1745524466431,5.65814858,1767.4,1767.1,0.7778]
[1745524466764,5.65814858,1767.4,1767.1,6.43678165]
[1745524466962,6.73487478,1767.3,1767.0,4.804]
[1745524467122,6.73487478,1767.3,1767.0,5.92768109]
[1745524467322,1.07649526,1767.3,1767.0,11.58696805]
[1745524468556,6.73489329,1767.3,1767.0,11.58696805]
[1745524468754,12.39348577,1767.3,1767.0,4.804]
[1745524468950,1.07649526,1767.1,1767.0,4.804]
[1745524469538,6.73548456,1767.1,1767.0,4.804]
[1745524470353,0.7786,1767.4,1767.0,10.94358846]
[1745524470656,12.0950994,1767.4,1767.0,10.94358846]
[1745524470854,6.43679555,1767.4,1767.0,10.94358846]
[1745524471427,6.43679555,1767.4,1767.0,10.94349398]
[1745524471860,12.09505913,1767.4,1767.0,10.94349398]
[1745524472258,5.65834995,1767.3,1767.0,10.94349398]
[1745524472626,6.73484521,1767.3,1767.0,10.94349398]
[1745524472826,1.07649526,1767.3,1767.0,10.94347973]
[1745524473338,1.07649526,1767.3,1767.0,16.60264092]
[1745524473662,1.07649526,1767.3,1767.0,10.94347973]
[1745524474361,6.7350795,1767.3,1767.0,4.804]
[1745524475463,5.65869657,1767.2,1767.0,4.804]
[1745524476163,5.9540639,1767.2,1767.0,4.804]
[1745524476559,6.73548456,1767.1,1767.0,4.804]
[1745524476765,7.52018456,1767.1,1767.0,4.804]
[1745524476963,8.86760941,1767.1,1767.0,4.804]
[1745524478063,0.7692,1766.9,1766.6,4.802]
[1745524478280,5.66009609,1766.8,1766.6,4.802]
[1745524478663,6.07873823,1766.8,1766.6,4.802]
[1745524478843,6.07873823,1766.8,1766.6,5.92989046]
[1745524479164,7.50538732,1766.9,1766.6,5.92989046]
[1745524480264,1.07649526,1767.1,1766.8,5.65983013]
[1745524480472,5.65867328,1767.2,1766.8,6.48052481]
[1745524480657,6.08482652,1767.2,1766.9,0.64805248]
[1745524480859,6.08482652,1767.2,1767.0,4.802]
[1745524483265,1.07649526,1767.1,1767.0,4.802]
[1745524483473,7.52098456,1767.1,1767.0,4.802]
[1745524485980,0.42615324,1767.2,1767.0,5.5726]
[1745524486274,5.6589893,1767.1,1767.0,4.802]
[1745524489674,6.73548456,1767.1,1767.0,4.802]
[1745524490443,5.65999144,1766.8,1766.7,4.802]
[1745524490745,13.19438567,1766.9,1766.7,4.802]
[1745524491152,5.65995019,1766.8,1766.7,4.802]
[1745524491352,6.7361428,1766.9,1766.7,4.802]
[1745524492578,12.39602366,1766.9,1766.7,4.802]
[1745524492746,5.65995019,1766.8,1766.7,4.802]
[1745524493844,0.29540552,1766.8,1766.7,4.802]
[1745524495080,5.65995019,1766.8,1766.7,4.802]
[1745524495248,6.7361428,1766.9,1766.7,4.802]
[1745524495577,12.39602983,1766.9,1766.7,4.802]
[1745524495876,5.65995019,1766.8,1766.7,4.802]
[1745524496079,6.7361428,1766.9,1766.7,4.802]
[1745524496576,12.39603962,1766.9,1766.7,4.802]
[1745524496777,6.7361428,1766.9,1766.7,4.802]
[1745524500379,0.29509819,1767.1,1766.8,6.42934198]
[1745524500694,0.29509819,1767.1,1766.8,6.42929931]
[1745524500894,0.29509819,1767.1,1766.8,0.7695]
[1745524501064,0.29509819,1767.1,1766.4,28.21762768]
[1745524501065,5.66020921,1766.8,1766.4,28.21762768]
[1745524501261,1.07649526,1766.8,1766.4,28.21764322]
[1745524501470,5.6599521,1766.8,1766.6,0.7695]
[1745524502264,5.65977757,1766.9,1766.6,0.7695]
[1745524502781,6.73599683,1767.0,1766.6,0.7695]
[1745524502782,5.66012774,1766.8,1766.6,0.7695]
[1745524503090,5.66012774,1766.8,1766.4,10.46404572]
[1745524503091,5.66027056,1766.7,1766.4,10.46404572]
[1745524503290,5.66027056,1766.7,1766.4,11.28454572]
[1745524503495,6.46002774,1766.8,1766.5,1.12845457]
[1745524504095,5.66059096,1766.6,1766.4,5.6235]
[1745524504298,5.66059096,1766.6,1766.4,4.802]
[1745524504462,5.660429,1766.7,1766.4,4.802]
[1745524504664,6.08855053,1766.7,1766.4,4.802]
[1745524505272,11.7490754,1766.7,1766.4,4.802]
[1745524505475,6.08855053,1766.7,1766.4,4.802]
[1745524506299,11.74907035,1766.7,1766.4,4.802]
[1745524506465,6.08855053,1766.7,1766.4,5.7490547]
[1745524506659,0.42812153,1766.7,1766.4,5.7490547]
[1745524506889,5.66002468,1766.8,1766.5,0.8205]
[1745524507095,5.66041139,1766.7,1766.5,0.8205]
[1745524507295,5.66059096,1766.6,1766.4,5.7490547]
[1745524507791,5.66041139,1766.7,1766.4,5.7490547]
[1745524508375,11.3209875,1766.7,1766.4,5.7490547]
[1745524508581,11.74022949,1766.7,1766.4,5.7490547]
[1745524508771,5.66066476,1766.6,1766.4,4.802]
[1745524510672,5.95610078,1766.6,1766.4,4.802]
[1745524512607,11.61695245,1766.6,1766.4,4.802]
[1745524512800,5.95610078,1766.6,1766.4,4.802]
[1745524513173,5.6609114,1766.5,1766.4,4.802]
[1745524513394,6.2512159,1766.6,1766.4,4.802]
[1745524513610,11.91205321,1766.6,1766.4,4.802]
[1745524513785,6.2512159,1766.6,1766.4,4.802]
[1745524513982,0.59055114,1766.6,1766.4,4.802]
[1745524515407,0.29511512,1766.6,1766.4,4.802]